bitfinex/quotes_SOLUSD_20220306
["timestamp","ask_amount","ask_price","bid_price","bid_amount"]
[1646569391416,1.53289909,87.321,87.119,89.6996]
[1646569391620,1.53289909,87.308,87.132,27.34942356]
[1646569391818,57.98861024,87.306,87.16,17.2046]
[1646569392020,52.76558439,87.306,87.16,17.2046]
[1646569392319,52.76558439,87.306,87.154,61.92287883]
[1646569392320,52.76558439,87.306,87.161,45.27647006]
[1646569392518,5.731,87.305,87.162,116.1]
[1646569392720,52.76558439,87.306,87.163,4.27399463]
[1646569392920,5.731,87.305,87.164,116.1]
[1646569393121,5.731,87.305,87.201,162.39877404]
[1646569393419,52.76558439,87.306,87.201,46.29877404]
[1646569393618,52.76558439,87.306,87.202,17.9270465]
[1646569393820,52.76558439,87.306,87.202,72.03390864]
[1646569394019,52.76558439,87.306,87.23,17.1869]
[1646569394224,52.76558439,87.306,87.232,116.1]
[1646569394620,52.76558439,87.306,87.233,27.34942356]
[1646569394822,52.76558439,87.306,87.233,72.03390864]
[1646569395120,52.76558439,87.306,87.234,17.9270465]
[1646569395420,52.76558439,87.306,87.234,2.83613526]
[1646569396323,52.76558439,87.306,87.235,5.729]
[1646569396925,52.76558439,87.306,87.215,2.83613526]
[1646569397123,52.76558439,87.306,87.157,47.0579]
[1646569397326,5.24580322,87.303,87.193,2.83613526]
[1646569397626,5.24580322,87.303,87.193,47.17989492]
[1646569397824,5.73,87.302,87.194,5.73]
[1646569398427,5.73,87.302,87.195,2.83613526]
[1646569398627,116.1,87.302,87.196,5.73]
[1646569398828,71.1936,87.305,87.197,50.39180557]
[1646569399028,5.73,87.304,87.198,5.73]
[1646569399228,5.73,87.304,87.198,32.48743858]
[1646569399430,71.1936,87.305,87.199,131.19091124]
[1646569399631,71.1936,87.305,87.201,116.1]
[1646569399833,71.1936,87.305,87.202,5.73]
[1646569400032,52.76558439,87.306,87.202,20.82091124]
[1646569400230,52.76558439,87.306,87.202,75.57124198]
[1646569400431,52.76558439,87.306,87.203,69.84124198]
[1646569400632,5.73,87.305,87.204,5.73]
[1646569400839,52.76558439,87.306,87.211,52.46478308]
[1646569401032,52.76558439,87.306,87.212,5.73]
[1646569401231,4.20043293,87.304,87.205,17.9270465]
[1646569401430,5.73,87.305,87.192,15.09091124]
[1646569401631,120.88842323,87.302,87.212,2.83613526]
[1646569401831,5.73,87.301,87.194,2.83613526]
[1646569402033,5.73,87.301,87.194,67.44454196]
[1646569402632,1.53289909,87.299,87.194,67.44454196]
[1646569402833,1.53289909,87.299,87.195,33.72289216]
[1646569403031,1.53289909,87.302,87.2,17.1996]
[1646569403230,5.73,87.301,87.201,5.73]
[1646569403530,5.73,87.302,87.201,54.75033074]
[1646569403730,5.73,87.302,87.202,67.00510672]
[1646569404037,49.1226,87.303,87.203,45.97766814]
[1646569404230,49.1226,87.303,87.203,75.57124198]
[1646569404433,49.1226,87.303,87.211,38.24818195]
[1646569404631,49.1226,87.303,87.212,5.73]
[1646569404831,49.1226,87.303,87.212,60.48033074]
[1646569405034,116.1,87.302,87.212,50.41448508]
[1646569405232,1.53289909,87.293,87.213,2.83613526]
[1646569405431,1.53289909,87.282,87.213,2.83613526]
[1646569405632,1.53289909,87.273,87.196,2.83613526]
[1646569405831,1.53289909,87.277,87.196,2.83613526]
[1646569406031,141.0811,87.29,87.196,2.83613526]
[1646569406032,47.13391075,87.272,87.197,47.27545416]
[1646569406231,47.13391075,87.272,87.198,5.731]
[1646569406432,47.13391075,87.272,87.197,5.731]
[1646569406832,1.53289909,87.27,87.197,5.731]
[1646569407134,121.831,87.271,87.186,2.83613526]
[1646569407335,18.74749909,87.26,87.187,5.732]
[1646569407536,1.53289909,87.254,87.171,5.732]
[1646569407754,1.53289909,87.243,87.171,5.732]
[1646569408234,60.56991123,87.242,87.171,5.732]
[1646569408432,5.732,87.241,87.17,2.83613526]
[1646569409034,60.56991123,87.242,87.17,2.83613526]
[1646569409035,60.56991123,87.242,87.171,5.732]
[1646569409236,60.56991123,87.242,87.171,30.8887569]
[1646569409436,60.56991123,87.242,87.172,66.35724198]
[1646569409638,60.56991123,87.242,87.173,5.732]
[1646569409835,60.56991123,87.242,87.173,48.8158034]
[1646569410040,60.56991123,87.242,87.174,17.9270465]
[1646569410436,5.732,87.241,87.174,17.9270465]
[1646569410647,5.732,87.241,87.16,2.83613526]
[1646569411137,60.56991123,87.242,87.175,2.83613526]
[1646569411440,60.56991123,87.242,87.176,5.732]
[1646569412736,60.56991123,87.242,87.177,2.83613526]
[1646569412939,60.56991123,87.242,87.18,17.207]
[1646569413236,60.56991123,87.242,87.182,46.13135949]
[1646569413437,60.56991123,87.242,87.183,5.732]
[1646569413635,60.56991123,87.242,87.183,8.56813526]
[1646569413836,60.56991123,87.242,87.183,5.732]
[1646569414135,60.56991123,87.242,87.184,2.83613526]
[1646569414336,60.56991123,87.242,87.19,17.2009]
[1646569414638,60.56991123,87.242,87.191,5.732]
[1646569414839,60.56991123,87.242,87.191,2.83613526]
[1646569415040,60.56991123,87.242,87.192,2.83613526]
[1646569415636,60.56991123,87.242,87.18,2.83613526]
[1646569415838,1.53289909,87.236,87.18,2.83613526]
[1646569416038,1.53289909,87.238,87.17,2.83613526]
[1646569416237,1.53289909,87.257,87.181,63.52110672]
[1646569416537,1.53289909,87.261,87.182,5.732]
[1646569416738,1.53289909,87.264,87.2,17.1997]
[1646569416938,1.53289909,87.264,87.201,60.14928375]
[1646569417136,46.7228,87.316,87.201,100.39695189]
[1646569417137,1.53289909,87.274,87.201,100.39695189]
[1646569417340,1.53289909,87.275,87.202,25.1567569]
[1646569417540,1.53289909,87.275,87.203,5.731]
[1646569417738,1.53289909,87.274,87.203,20.82191124]
[1646569418038,1.53289909,87.273,87.21,17.1929]
[1646569418237,1.53289909,87.272,87.21,17.1929]
[1646569418439,1.53289909,87.269,87.204,2.83613526]
[1646569418838,4.63884943,87.292,87.204,2.83613526]
[1646569418839,1.53289909,87.251,87.204,2.83613526]
[1646569419045,53.14438725,87.25,87.204,2.83613526]
[1646569419240,53.14438725,87.25,87.205,5.732]
[1646569419840,116.1,87.249,87.177,6.48]
[1646569420043,1.53289909,87.24,87.177,6.48]
[1646569420241,1.53289909,87.232,87.177,6.48]
[1646569420439,1.53289909,87.228,87.177,6.48]
[1646569420641,1.53289909,87.221,87.177,6.48]
[1646569420940,1.53289909,87.225,87.177,6.48]
[1646569421341,1.53289909,87.226,87.177,6.48]
[1646569421940,46.88392631,87.227,87.177,6.48]
[1646569422140,1.53289909,87.229,87.177,6.48]
[1646569422141,1.53289909,87.226,87.177,6.48]
[1646569422341,1.53289909,87.236,87.178,2.83613526]
[1646569422544,1.53289909,87.236,87.179,5.732]
[1646569422766,22.609,87.248,87.179,5.732]
[1646569422941,22.609,87.248,87.18,2.83613526]
[1646569423241,45.99495251,87.247,87.181,5.732]
[1646569423441,121.832,87.246,87.177,6.48]
[1646569423643,1.53289909,87.236,87.177,6.48]
[1646569424041,5.732,87.235,87.177,6.48]
[1646569424241,1.53289909,87.229,87.177,6.48]
[1646569424442,63.82941451,87.228,87.177,6.48]
[1646569424745,1.53289909,87.224,87.177,6.48]
[1646569425146,58.09741451,87.228,87.177,6.48]
[1646569425341,59.6303136,87.228,87.18,17.2081]
[1646569425541,1.53289909,87.227,87.177,6.48]
[1646569425742,59.6303136,87.228,87.177,6.48]
[1646569426144,1.53289909,87.227,87.177,6.48]
[1646569426343,1.53289909,87.226,87.177,6.48]
[1646569426549,1.53289909,87.225,87.177,6.48]
[1646569426744,1.53289909,87.226,87.177,6.48]
[1646569426945,1.53289909,87.225,87.177,6.48]
[1646569427147,1.53289909,87.227,87.177,6.48]
[1646569427345,59.6303136,87.228,87.177,6.48]
[1646569427546,58.09741451,87.228,87.177,6.48]
[1646569427946,59.6303136,87.228,87.177,6.48]
[1646569428147,58.09741451,87.228,87.177,6.48]
[1646569429848,1.53289909,87.226,87.177,6.48]
[1646569430049,1.53289909,87.225,87.177,6.48]
[1646569430669,1.53289909,87.22,87.177,6.48]
[1646569430870,1.53289909,87.218,87.177,6.48]
[1646569431070,1.53289909,87.217,87.177,6.48]
[1646569431370,1.53289909,87.21,87.177,6.48]
[1646569431571,116.1,87.209,87.113,5.734]
[1646569431770,49.55229909,87.208,87.113,5.734]
[1646569431970,49.55229909,87.208,87.114,67.4119631]
[1646569431971,1.53289909,87.204,87.114,67.4119631]
[1646569432169,1.53289909,87.205,87.115,5.736]
[1646569432370,7.26889909,87.204,87.115,8.57213526]
[1646569432569,1.53289909,87.204,87.116,2.83613526]
[1646569432771,5.736,87.206,87.116,2.83613526]
[1646569432772,7.26889909,87.206,87.116,2.83613526]
[1646569432970,7.26889909,87.206,87.12,17.2217]
[1646569433169,5.736,87.206,87.12,17.2217]
[1646569433371,116.1,87.205,87.121,2.83613526]
[1646569433572,5.736,87.204,87.121,2.83613526]
[1646569433973,5.736,87.206,87.121,2.83613526]
[1646569434174,116.1,87.199,87.13,17.2201]
[1646569434375,17.2216,87.2,87.13,17.2201]
[1646569434676,5.736,87.199,87.13,17.2201]
[1646569434874,5.736,87.199,87.131,2.83613526]
[1646569435075,17.2216,87.2,87.131,2.83613526]
[1646569435277,1.53289909,87.205,87.14,17.2187]
[1646569435675,1.53289909,87.205,87.141,2.83613526]
[1646569435875,49.45567618,87.207,87.141,2.83613526]
[1646569437177,49.45567618,87.207,87.129,53.32889608]
[1646569437781,5.736,87.206,87.129,53.32889608]
[1646569438380,5.736,87.206,87.115,5.736]
[1646569439080,5.736,87.206,87.13,17.2194]
[1646569439279,121.836,87.206,87.13,17.2194]
[1646569439479,123.36889909,87.206,87.13,17.2194]
[1646569440289,116.1,87.199,87.115,5.736]
[1646569440484,5.736,87.198,87.115,5.736]
[1646569440682,7.26889909,87.198,87.115,5.736]
[1646569441387,1.53289909,87.195,87.115,5.736]
[1646569441585,5.736,87.194,87.115,5.736]
[1646569441782,57.40697604,87.193,87.115,5.736]
[1646569441983,121.836,87.192,87.115,5.736]
[1646569442187,116.1,87.189,87.115,5.736]
[1646569442384,5.737,87.188,87.065,24.0516]
[1646569442587,1.53289909,87.179,87.065,24.0516]
[1646569442788,1.53289909,87.176,87.065,24.0516]
[1646569442987,117.63289909,87.174,87.066,79.9351434]
[1646569443186,122.09470818,87.172,87.066,79.9351434]
[1646569443485,5.739,87.171,87.066,79.9351434]
[1646569444085,116.1,87.169,87.07,57.4257]
[1646569444286,5.739,87.168,87.07,57.4257]
[1646569445185,116.1,87.159,87.07,57.4257]
[1646569445388,116.1,87.157,87.07,57.4257]
[1646569445586,121.839,87.157,87.066,57.48117048]
[1646569446189,121.839,87.157,87.065,24.0516]
[1646569446390,121.839,87.157,87.048,12.37539419]
[1646569446391,116.1,87.149,87.048,12.37539419]
[1646569446586,73.21803277,87.156,87.035,12.37539419]
[1646569446587,4.55282185,87.146,87.035,12.37539419]
[1646569446797,116.1,87.139,87.035,12.37539419]
[1646569446988,116.1,87.137,87.035,12.37539419]
[1646569447187,116.1,87.137,87.021,22.45397292]
[1646569447188,116.1,87.135,87.036,52.58166306]
[1646569447389,5.74,87.134,87.036,52.58166306]
[1646569447787,116.1,87.132,87.036,52.58166306]
[1646569447993,116.1,87.132,87.022,12.37539419]
[1646569447994,116.1,87.119,87.04,17.2389]
[1646569448188,5.74,87.118,87.04,17.2389]
[1646569448386,5.74,87.118,87.022,12.37539419]
[1646569448587,116.1,87.116,87.022,12.37539419]
[1646569448787,5.742,87.115,87.023,22.45397292]
[1646569448989,116.1,87.113,87.024,61.25439241]
[1646569449192,116.1,87.109,87.03,17.2402]
[1646569449390,5.742,87.108,87.03,17.2402]
[1646569449992,8.29,87.115,87.031,22.45397292]
[1646569450192,8.29,87.115,87.05,17.2368]
[1646569450595,8.29,87.115,87.041,116.1]
[1646569450596,8.29,87.115,87.051,22.45397292]
[1646569450792,8.29,87.115,87.051,36.27216277]
[1646569450992,8.29,87.115,87.052,13.81818985]
[1646569451194,8.29,87.115,87.052,70.46852136]
[1646569451591,8.29,87.115,87.053,13.81818985]
[1646569452194,53.34272172,87.114,87.07,17.2279]
[1646569452393,53.34272172,87.114,87.071,57.30175979]
[1646569453197,53.34272172,87.114,87.08,17.2299]
[1646569454798,8.29,87.115,87.08,17.2299]
[1646569455600,8.29,87.115,87.09,17.2274]
[1646569455998,8.29,87.115,87.091,60.60296413]
[1646569456400,8.29,87.115,87.092,2.83613526]
[1646569456599,8.29,87.115,87.1,17.2257]
[1646569457001,8.29,87.115,87.101,2.83613526]
[1646569459611,8.29,87.115,87.074,2.83613526]
[1646569460311,63.85956533,87.119,87.08,17.2307]
[1646569462821,63.85956533,87.119,87.074,2.83613526]
[1646569463014,116.1,87.118,87.074,2.83613526]
[1646569463316,63.85956533,87.119,87.055,2.83613526]
[1646569463518,7.71,87.118,87.055,2.83613526]
[1646569463713,63.85956533,87.119,87.055,2.83613526]
[1646569465128,63.85956533,87.119,87.061,56.84600139]
[1646569465528,63.85956533,87.119,87.062,2.83613526]
[1646569466732,179.95956533,87.119,87.062,2.83613526]
[1646569466930,5.74,87.118,87.062,2.83613526]
[1646569467531,5.74,87.118,87.063,51.34928763]
[1646569467731,63.85956533,87.119,87.07,17.2325]
[1646569468032,24.8227,87.135,87.07,17.2325]
[1646569468231,24.8227,87.135,87.071,2.83613526]
[1646569468634,24.8227,87.135,87.09,17.2287]
[1646569468832,23.8262,87.138,87.09,17.2287]
[1646569469033,59.23233755,87.137,87.091,63.19355751]
[1646569469834,5.739,87.136,87.091,63.19355751]
[1646569470133,5.739,87.136,87.08,17.2308]
[1646569470933,59.23233755,87.137,87.08,17.2308]
[1646569471136,59.23233755,87.137,87.081,63.61897551]
[1646569472336,59.23233755,87.137,87.09,17.2287]
[1646569472935,59.23233755,87.137,87.081,63.61897551]
[1646569473135,59.23233755,87.137,87.072,5.74]
[1646569473535,59.23233755,87.137,87.073,2.83613526]
[1646569474135,59.23233755,87.137,87.08,17.2307]
[1646569474938,121.839,87.136,87.073,2.83613526]
[1646569475139,1.53289909,87.135,87.073,2.83613526]
[1646569475338,7.27289909,87.134,87.073,2.83613526]
[1646569475539,5.74,87.134,87.073,2.83613526]
[1646569475938,116.1,87.136,87.073,2.83613526]
[1646569475939,5.74,87.135,87.073,2.83613526]
[1646569476146,60.76523664,87.137,87.073,2.83613526]
[1646569476541,5.74,87.136,87.073,2.83613526]
[1646569476941,116.1,87.129,87.073,2.83613526]
[1646569477141,116.1,87.129,87.059,2.83613526]
[1646569477142,5.74,87.128,87.059,2.83613526]
[1646569477341,1.53289909,87.123,87.059,2.83613526]
[1646569477541,1.53289909,87.124,87.059,2.83613526]
[1646569478041,47.29440116,87.123,87.059,2.83613526]
[1646569478340,5.74,87.122,87.059,2.83613526]
[1646569479045,5.74,87.122,87.06,64.2328265]
[1646569479241,47.29440116,87.123,87.061,5.74]
[1646569479740,47.29440116,87.123,87.061,8.57613526]
[1646569481143,47.29440116,87.123,87.061,2.83613526]
[1646569481944,47.29440116,87.123,87.062,70.39743592]
[1646569482143,47.29440116,87.123,87.062,64.65743592]
[1646569482343,47.29440116,87.123,87.063,2.83613526]
[1646569484544,47.29440116,87.123,87.07,17.2319]
[1646569486847,47.29440116,87.123,87.071,2.83613526]
[1646569487151,5.74,87.133,87.08,17.2297]
[1646569487347,1.53289909,87.139,87.08,17.2297]
[1646569487548,1.53289909,87.143,87.081,2.83613526]
[1646569487748,1.53289909,87.144,87.081,24.80351597]
[1646569487946,1.53289909,87.146,87.081,24.80351597]
[1646569488148,62.04639972,87.143,87.082,73.49997606]
[1646569488650,5.739,87.142,87.082,73.49997606]
[1646569489052,62.04639972,87.143,87.082,73.49997606]
[1646569489455,62.04639972,87.143,87.082,24.80351597]
[1646569489657,116.1,87.142,87.073,5.739]
[1646569489852,1.53289909,87.126,87.068,2.83613526]
[1646569490052,1.53289909,87.125,87.057,2.83613526]
[1646569490454,1.53289909,87.131,87.058,53.87680308]
[1646569490658,50.87728934,87.128,87.06,17.2334]
[1646569490953,5.74,87.127,87.06,17.2334]
[1646569491151,5.74,87.127,87.061,2.83613526]
[1646569491653,5.74,87.127,87.062,21.96738071]
[1646569491853,5.74,87.127,87.07,17.2316]
[1646569492251,5.74,87.127,87.063,2.83613526]
[1646569493053,5.74,87.127,87.07,17.2317]
[1646569493253,50.87728934,87.128,87.07,17.2317]
[1646569493456,50.87728934,87.128,87.071,30.54351597]
[1646569493654,50.87728934,87.128,87.072,59.69658592]
[1646569493856,50.87728934,87.128,87.073,5.74]
[1646569494061,50.87728934,87.128,87.08,17.2281]
[1646569494264,50.87728934,87.128,87.073,5.74]
[1646569494465,50.87728934,87.128,87.072,84.50010189]
[1646569495565,50.87728934,87.128,87.073,5.74]
[1646569496869,1.53289909,87.135,87.08,17.2292]
[1646569497366,1.53289909,87.137,87.08,39.19658071]
[1646569497778,22.5688,87.149,87.08,39.19658071]
[1646569497779,59.13320806,87.136,87.08,39.19658071]
[1646569497980,1.53289909,87.14,87.08,39.19658071]
[1646569498180,1.53289909,87.146,87.081,2.83613526]
[1646569498380,1.53289909,87.146,87.09,17.2264]
[1646569498580,1.53289909,87.147,87.09,17.2264]
[1646569498780,1.53289909,87.146,87.09,17.2264]
[1646569499180,62.60810627,87.145,87.091,50.09664511]
[1646569499382,1.53289909,87.148,87.1,17.2254]
[1646569499582,22.5688,87.149,87.1,17.2254]
[1646569499980,22.5688,87.149,87.101,2.83613526]
[1646569500381,59.73908458,87.148,87.101,2.83613526]
[1646569503685,22.5688,87.149,87.11,17.2234]
[1646569503884,1.53289909,87.161,87.11,17.2234]
[1646569504084,1.53289909,87.162,87.11,17.2234]
[1646569504489,64.65607442,87.165,87.111,49.14230715]
[1646569505488,1.53289909,87.171,87.12,17.2215]
[1646569505689,1.53289909,87.175,87.12,17.2215]
[1646569505889,1.53289909,87.177,87.121,2.83613526]
[1646569506090,1.53289909,87.179,87.121,2.83613526]
[1646569506290,1.53289909,87.181,87.121,2.83613526]
[1646569506489,23.647,87.183,87.122,21.96738071]
[1646569506891,23.647,87.183,87.123,2.83613526]
[1646569507093,23.647,87.183,87.13,17.2195]
[1646569507291,23.647,87.183,87.131,63.56339048]
[1646569507491,23.647,87.183,87.131,66.39952574]
[1646569507892,23.647,87.183,87.132,2.83613526]
[1646569508392,5.736,87.211,87.132,2.83613526]
[1646569508393,1.53289909,87.199,87.14,17.2174]
[1646569508594,1.53289909,87.204,87.14,17.2174]
[1646569508795,1.53289909,87.204,87.141,26.7645313]
[1646569508996,63.79672511,87.204,87.141,26.7645313]
[1646569509194,62.26382602,87.204,87.142,26.7645313]
[1646569509394,62.26382602,87.204,87.15,17.2112]
[1646569509596,62.26382602,87.204,87.151,54.34133344]
[1646569509794,62.26382602,87.204,87.151,78.26972948]
[1646569511095,1.53289909,87.214,87.16,17.213]
[1646569511294,1.53289909,87.23,87.16,17.213]
[1646569511496,1.53289909,87.23,87.16,20.04913526]
[1646569511696,5.734,87.229,87.16,20.04913526]
[1646569511894,1.53289909,87.227,87.16,20.04913526]
[1646569512098,67.68807275,87.226,87.16,20.04913526]
[1646569512296,61.95407275,87.226,87.16,20.04913526]
[1646569512597,116.1,87.219,87.152,15.13165284]
[1646569512796,1.53289909,87.215,87.139,15.13165284]
[1646569512997,1.53289909,87.21,87.139,15.13165284]
[1646569513197,1.53289909,87.208,87.139,15.13165284]
[1646569513397,58.82100877,87.206,87.139,15.13165284]
[1646569514098,58.82100877,87.206,87.139,39.06004888]
[1646569514999,58.82100877,87.206,87.14,17.2177]
[1646569515399,58.82100877,87.206,87.141,2.83613526]
[1646569515599,58.82100877,87.206,87.141,41.89618414]
[1646569515899,58.82100877,87.206,87.142,61.32621578]
[1646569516099,58.82100877,87.206,87.142,64.16235104]
[1646569516299,58.82100877,87.206,87.161,64.13768711]
[1646569518605,58.82100877,87.206,87.143,64.16235104]
[1646569519001,58.82100877,87.206,87.15,17.2157]
[1646569519401,58.82100877,87.206,87.151,26.7645313]
[1646569519602,58.82100877,87.206,87.152,47.10397453]
[1646569520204,58.82100877,87.206,87.153,26.7645313]
[1646569520804,58.82100877,87.206,87.153,32.4995313]
[1646569523606,58.82100877,87.206,87.16,17.2137]
[1646569524107,58.82100877,87.206,87.153,32.4995313]
[1646569526309,58.82100877,87.206,87.153,26.7645313]
[1646569527612,58.82100877,87.206,87.153,2.83613526]
[1646569528010,1.53289909,87.205,87.139,2.83613526]
[1646569528211,1.53289909,87.197,87.139,2.83613526]
[1646569528412,5.736,87.196,87.129,15.13165284]
[1646569528614,1.53289909,87.189,87.129,15.13165284]
[1646569528813,58.04557238,87.187,87.129,15.13165284]
[1646569529014,58.04557238,87.187,87.129,39.06004888]
[1646569529213,1.53289909,87.185,87.129,39.06004888]
[1646569529414,1.53289909,87.186,87.129,39.06004888]
[1646569529614,116.1,87.186,87.129,39.06004888]
[1646569529818,1.53289909,87.179,87.119,2.83613526]
[1646569530019,5.736,87.185,87.116,15.13165284]
[1646569530020,1.53289909,87.174,87.116,15.13165284]
[1646569530217,17.2272,87.17,87.11,23.92839604]
[1646569530417,5.737,87.169,87.11,23.92839604]
[1646569530819,7.26989909,87.169,87.11,23.92839604]
[1646569531017,1.53289909,87.165,87.11,23.92839604]
[1646569531219,5.738,87.164,87.11,23.92839604]
[1646569532233,5.738,87.164,87.111,22.2661669]
[1646569532435,5.738,87.168,87.111,22.2661669]
[1646569532735,5.738,87.168,87.112,23.92839604]
[1646569532934,55.47022249,87.172,87.112,26.7645313]
[1646569533134,1.53289909,87.171,87.113,25.10230216]
[1646569533335,1.53289909,87.171,87.113,49.0306982]
[1646569533535,1.53289909,87.171,87.114,23.92839604]
[1646569533734,1.53289909,87.17,87.114,23.92839604]
[1646569534334,1.53289909,87.17,87.115,2.83613526]
[1646569534535,53.9373234,87.172,87.115,8.57313526]
[1646569534736,53.9373234,87.172,87.116,61.32621578]
[1646569534936,1.53289909,87.181,87.117,5.737]
[1646569535135,1.53289909,87.182,87.117,67.06321578]
[1646569535338,1.53289909,87.189,87.12,17.2211]
[1646569535536,1.53289909,87.19,87.121,5.736]
[1646569535738,1.53289909,87.19,87.121,67.06221578]
[1646569535945,60.93329753,87.194,87.122,22.2661669]
[1646569536239,60.93329753,87.194,87.124,58.03640714]
[1646569536439,60.93329753,87.194,87.14,17.2162]
[1646569536739,60.93329753,87.194,87.141,58.80683538]
[1646569536939,60.93329753,87.194,87.141,82.73523142]
[1646569537239,60.93329753,87.194,87.142,23.92839604]
[1646569537439,60.93329753,87.194,87.142,26.7645313]
[1646569537639,60.93329753,87.194,87.15,17.2155]
[1646569538038,60.93329753,87.194,87.15,41.14389604]
[1646569538840,60.93329753,87.194,87.15,23.92839604]
[1646569539241,60.93329753,87.194,87.143,2.83613526]
[1646569539841,1.53289909,87.193,87.135,23.92839604]
[1646569540040,1.53289909,87.186,87.128,2.83613526]
[1646569540444,1.53289909,87.186,87.127,15.13165284]
[1646569540642,1.53289909,87.184,87.127,15.13165284]
[1646569540843,1.53289909,87.185,87.128,23.92839604]
[1646569541041,1.53289909,87.186,87.128,23.92839604]
[1646569541849,7.26889909,87.185,87.128,23.92839604]
[1646569542043,1.53289909,87.184,87.128,23.92839604]
[1646569542244,1.53289909,87.183,87.128,23.92839604]
[1646569542846,5.736,87.192,87.128,23.92839604]
[1646569542847,1.53289909,87.182,87.128,23.92839604]
[1646569543344,1.53289909,87.183,87.128,23.92839604]
[1646569543744,1.53289909,87.186,87.13,17.2196]
[1646569543945,5.736,87.185,87.13,17.2196]
[1646569544145,1.53289909,87.187,87.131,26.7645313]
[1646569544548,1.53289909,87.187,87.132,49.0306982]
[1646569544746,1.53289909,87.189,87.132,49.0306982]
[1646569544947,1.53289909,87.189,87.133,64.16235104]
[1646569545348,1.53289909,87.189,87.134,26.7645313]
[1646569545550,1.53289909,87.19,87.134,26.7645313]
[1646569545746,1.53289909,87.19,87.135,2.83613526]
[1646569546247,1.53289909,87.19,87.135,26.7645313]
[1646569546546,1.53289909,87.19,87.135,23.92839604]
[1646569546746,1.53289909,87.19,87.136,2.83613526]
[1646569547147,1.53289909,87.19,87.137,23.92839604]
[1646569547346,60.93329753,87.194,87.137,23.92839604]
[1646569547347,1.53289909,87.186,87.137,23.92839604]
[1646569547546,1.53289909,87.187,87.137,26.7645313]
[1646569547748,1.53289909,87.189,87.138,52.23619013]
[1646569548154,1.53289909,87.192,87.139,2.83613526]
[1646569548346,1.53289909,87.193,87.139,2.83613526]
[1646569548547,60.93329753,87.194,87.139,2.83613526]
[1646569549446,5.736,87.193,87.139,2.83613526]
[1646569549646,5.736,87.193,87.139,26.7645313]
[1646569550050,62.46619662,87.194,87.14,2.83613526]
[1646569550249,1.53289909,87.193,87.14,2.83613526]
[1646569550449,60.93329753,87.194,87.14,26.7645313]
[1646569550655,66.66929753,87.194,87.14,26.7645313]
[1646569550849,1.53289909,87.193,87.141,2.83613526]
[1646569551051,1.53289909,87.19,87.141,2.83613526]
[1646569551253,1.53289909,87.191,87.141,2.83613526]
[1646569551549,1.53289909,87.19,87.141,62.95891475]
[1646569551949,1.53289909,87.19,87.142,2.83613526]
[1646569552350,1.53289909,87.191,87.142,2.83613526]
[1646569552551,1.53289909,87.19,87.142,2.83613526]
[1646569552852,1.53289909,87.191,87.142,2.83613526]
[1646569553254,1.53289909,87.189,87.142,2.83613526]
[1646569553853,1.53289909,87.188,87.142,2.83613526]
[1646569554253,1.53289909,87.189,87.142,2.83613526]
[1646569554456,1.53289909,87.186,87.142,2.83613526]
[1646569554653,1.53289909,87.188,87.142,2.83613526]
[1646569554854,1.53289909,87.19,87.142,2.83613526]
[1646569555253,1.53289909,87.189,87.142,2.83613526]
[1646569555453,1.53289909,87.19,87.142,2.83613526]
[1646569556153,1.53289909,87.189,87.142,2.83613526]
[1646569556354,1.53289909,87.188,87.142,2.83613526]
[1646569556955,1.53289909,87.187,87.142,2.83613526]
[1646569557354,1.53289909,87.188,87.142,2.83613526]
[1646569558660,1.53289909,87.187,87.143,23.92839604]
[1646569558856,1.53289909,87.188,87.143,23.92839604]
[1646569559056,1.53289909,87.193,87.144,2.83613526]
[1646569559258,60.93329753,87.194,87.144,40.233955]
[1646569559458,60.93329753,87.194,87.145,39.06004888]
[1646569559757,60.93329753,87.194,87.146,78.61362673]
[1646569560158,60.93329753,87.194,87.147,23.92839604]
[1646569562259,1.53289909,87.192,87.147,23.92839604]
[1646569562660,1.53289909,87.19,87.147,23.92839604]
[1646569563060,1.53289909,87.189,87.147,23.92839604]
[1646569563259,1.53289909,87.188,87.147,23.92839604]
[1646569563862,1.53289909,87.187,87.147,23.92839604]
[1646569564559,1.53289909,87.184,87.147,23.92839604]
[1646569565160,1.53289909,87.18,87.147,23.92839604]
[1646569565360,57.54836329,87.179,87.147,23.92839604]